Cogmind - Beta 11 X8 @@@ ROGUE MODE // 2021.10.23 @ 21:21:52 Player: Torako Result: Destroyed by P-80 Master with Gamma Rifle Performance ------------- Evolutions (9) 4500 Regions Visited (24) 4800 Robots Destroyed (176) 880 Value Destroyed (7508) 7508 Prototype IDs (55) 1100 Alien Tech Used (0) 0 Bonus (6581) 6581 TOTAL SCORE: 25369 Bonus ------- Triggered Max Security 1000 High Alert Combat Kills 671 Follower Combat Kills 2075 Entered Garrisons 600 Used RIF Installer 1500 Network Hubs Disabled 200 Aligned with FarCom 300 Built Enhanced Grunts 300 A7 Reached Mainframe 300 Friendly Fire -365 Cogmind --------- Core Integrity 0/1600 Matter 211/300 Energy 100/100 System Corruption 8% Temperature Cool (0) Movement Core (50) Location -1/Access Parts ------- > --- POWER (2) -------- (None) > --- PROPULSION (9) --- (None) > --- UTILITY (12) ----- (None) > --- WEAPON (2) ------- (None) > --- INVENTORY (5) ---- Compact Linear Accelerator Improved Remote Datajack Peak State ------------ > --- POWER ------------ Micro Fission Core Antimatter Reactor > --- PROPULSION ------- Combat Airjet Combat Airjet Combat Airjet Combat Airjet Antigrav System Gyrokinetic Inverter Gyrokinetic Inverter > --- UTILITY ---------- Improved Heat Sink High-capacity Storage Unit Improved Target Analyzer Improved Core Analyzer EM Dispersion Field Improved Hacking Suite Improved Hacking Suite Improved System Shield > --- WEAPON ----------- EMDS > --- INVENTORY -------- Armored Medium Treads Improved Heat Sink Improved Coolant Injector Energy Well Advanced Terrain Scanner Relay Coupler [NC] Relay Coupler [Swarmer] Relay Coupler [Brawler] Relay Coupler [Hunter] Skeleton Box Advanced Variable Charge Gun Smartbomb Launcher Advanced Datajack Improved Remote Datajack Improved Remote Datajack Power Sword [Rating: 118] Favorites ----------- Power Improved Ion Engine Engine Improved Ion Engine Power Core Micro Fission Core Reactor Light Particle Reactor Propulsion Light Treads Treads Light Treads Leg Aluminum Leg Wheel Wheel Hover Unit Combat Airjet Utility High-capacity Storage Unit Device Structural Scanner Storage High-capacity Storage Unit Processor Machine Analyzer Hackware Relay Coupler [NC] Protection Improved Light Armor Plating Weapon Improved Light Cannon Energy Gun Heavy EM Shotgun Energy Cannon Nova Cannon Ballistic Gun Enhanced Autogun Ballistic Cannon Improved Light Cannon Launcher Rocket Launcher Special Weapon Improved Remote Datajack Slashing Weapon Power Sword Piercing Weapon Lance Special Melee Weapon Improved Datajack Build | -11 -10 -10 -9 -9 -9 -8 -8 -8 -8 -7 -7 -7 -7 -6 -5 -5 -5 -5 -5 -4 -3 -2 -2 -1 ------- Run | Scr Mat Min Mat Min Exi Min Mat Sto Gar Fac Gar Fac Gar Fac Fac Ext Cet Arc Hub Fac Res Res Tes Acc Slots Evolved 18 | . . . 2 . . . 2 . . 2 . . . 2 2 . . . . 2 2 2 . 2 Power 1 | . . . . . . . . . . . . . . . . . . . . 1 . . . . Propulsion 7 | . . . 1 . . . . . . 1 . . . 1 1 . . . . 1 . . . 2 Utility 10 | . . . 1 . . . 2 . . 1 . . . 1 1 . . . . . 2 2 . . Weapon . | . . . . . . . . . . . . . . . . . . . . . . . . . Parts Attached 274 | 7 9 3 5 4 . 2 29 29 12 4 16 8 24 14 11 9 7 6 11 36 14 10 1 3 Power 29 | 1 . . 1 . . . 2 2 . 1 1 1 4 1 1 1 2 . 3 7 1 . . . Engine 11 | 1 . . 1 . . . 2 1 . 1 1 1 2 . . 1 . . . . . . . . Core 13 | . . . . . . . . 1 . . . . 2 1 1 . 1 . 2 5 . . . . Reactor 5 | . . . . . . . . . . . . . . . . . 1 . 1 2 1 . . . Propulsion 80 | 3 3 . 1 . . . 8 3 3 1 6 2 10 2 1 5 1 1 4 12 5 6 . 3 Treads 21 | . 2 . 1 . . . 4 3 2 1 . . . . . . . . . 1 2 5 . . Leg 21 | 2 . . . . . . . . 1 . 5 . 5 . . . . . . 6 1 1 . . Wheel 13 | 1 1 . . . . . 4 . . . 1 2 1 . . . . . . . . . . 3 Hover 25 | . . . . . . . . . . . . . 4 2 1 5 1 1 4 5 2 . . . Flight . | . . . . . . . . . . . . . . . . . . . . . . . . . Utility 68 | 1 2 . 1 . . . 8 6 3 1 . 4 3 9 7 2 1 4 3 9 4 . . . Device 25 | . 1 . 1 . . . 2 3 1 . . 3 1 . 1 1 1 1 2 5 2 . . . Storage 5 | 1 1 . . . . . 1 . . . . . . 1 1 . . . . . . . . . Processor 8 | . . . . . . . 1 . . . . 1 . 1 2 . . . . 2 1 . . . Hackware 12 | . . . . . . . . . 1 . . . 2 2 2 . . 3 . 1 1 . . . Protection 18 | . . . . . . . 4 3 1 1 . . . 5 1 1 . . 1 1 . . . . Artifact . | . . . . . . . . . . . . . . . . . . . . . . . . . Weapon 97 | 2 4 3 2 4 . 2 11 18 6 1 9 1 7 2 2 1 3 1 1 8 4 4 1 . Energy Gun 22 | 2 1 . . 1 . . 5 8 1 1 . . 1 . . . 1 . . 1 . . . . Energy Cannon 9 | . . 1 . . . . . . . . . . 2 . . . . . . 2 2 1 1 . Ballistic Gun 11 | . . . . . . . . 1 1 . 6 . 1 . . . 1 . 1 . . . . . Ballistic Cannon 19 | . 2 1 2 1 . 1 4 3 1 . . . 2 . 1 . . . . . . 1 . . Launcher 19 | . 1 1 . 2 . 1 1 5 2 . 3 . . . . . . . . . 2 1 . . Special Weapon 1 | . . . . . . . . . . . . . . . . . . . . 1 . . . . Impact Weapon . | . . . . . . . . . . . . . . . . . . . . . . . . . Slashing Weapon 9 | . . . . . . . 1 1 . . . 1 1 . . 1 1 . . 3 . . . . Piercing Weapon 3 | . . . . . . . . . . . . . . 1 1 . . . . . . 1 . . Special Melee Weapon 4 | . . . . . . . . . 1 . . . . 1 . . . 1 . 1 . . . . Unidentified Prototypes 17 | . . . . . . . 2 3 . . . 1 . . 2 . 2 . 1 2 2 1 . 1 Corrupted Parts 6 | . . . . . . . . . . . 2 . . . . . 1 . 1 2 . . . . System Corruption 34 | . . . . . . . . . . . 13 . . . . . 5 . 4 12 . . . . Parts Lost 116 | . . . . . . . 13 8 4 . 9 . 16 . 2 4 3 2 9 28 . 11 5 2 Power 15 | . . . . . . . 2 1 . . . . 2 . 1 1 1 . 2 4 . . . 1 Propulsion 48 | . . . . . . . 5 3 . . 4 . 7 . . . 1 1 2 15 . 7 2 1 Utility 33 | . . . . . . . 5 3 3 . 3 . 3 . . 1 . 1 4 6 . 3 1 . Weapon 20 | . . . . . . . 1 1 1 . 2 . 4 . 1 2 1 . 1 3 . 1 2 . Highest Loss Streak 18 | . . . . . . . 10 4 2 . 7 . 11 . 1 2 2 2 5 18 . 8 5 2 Average Slot Usage (%) 82 | . 95 100 97 100 100 100 91 81 84 92 73 87 80 92 85 86 91 87 84 83 38 41 17 7 Engine 5 | . 14 14 11 11 11 11 9 3 9 7 6 6 5 . . 1 2 . . . . . . . Core 1 | . . . . . . . . 4 . . . . 1 6 5 3 . . 2 6 . . . . Treads 9 | . 7 14 22 22 22 22 11 22 24 30 15 . . . . . . . . . 3 9 7 . Leg 3 | . 13 . . . . . . . 1 . 7 26 16 . . . . . . . 2 3 . . Wheel 3 | . 7 14 11 11 11 11 15 . . . . 3 2 . . . . . . . . . . 5 Hover 8 | . . . . . . . . . . . . . 1 28 23 23 29 29 28 29 2 4 . . Device 9 | . 9 14 19 22 22 22 18 13 10 7 3 13 11 . . . 5 6 7 7 7 4 . . Storage 7 | . 14 14 11 11 11 11 9 9 9 7 7 7 7 12 5 5 5 5 5 5 . . . . Processor 3 | . . . . . . . . . . . . 4 7 6 10 11 11 5 5 4 4 4 4 . Hackware 7 | . . . . . . . . . 1 7 7 7 8 15 21 23 23 26 19 14 9 6 . . Protection 4 | . . . . . . . 9 10 11 15 7 . . 8 5 4 . . 1 1 . . . . Energy Gun 3 | . 25 . . . . . 6 11 13 8 7 . . . . . . . . . . . . . Ballistic Gun 1 | . . . . . . . . . 1 . 7 12 2 . . . 2 . 1 . . . . . Ballistic Cannon 5 | . 2 27 22 11 22 21 7 5 . . . . 5 . 2 2 . . . . . 1 . . Slashing Weapon 1 | . . . . . . . 3 . . . . 2 . 2 . . 4 5 5 3 . . . . Naked Turns 91 | . . . . . . . . . . . . . . . . . . . . . . . 2 89 Heaviest Build 85 | 14 32 32 37 37 37 37 61 83 67 64 64 62 71 59 61 64 64 65 65 85 29 35 15 12 Greatest Support 150 | 20 20 10 10 10 10 10 40 62 60 80 80 50 48 60 64 64 64 65 70 101 115 150 3 60 Greatest Overweight (x) 6 | . 3 3 3 3 3 3 6 1 1 . 5 3 5 . . 1 . . 1 2 . . 4 . Average Overweight (x) . | . 1 3 3 3 3 3 2 . . . . 1 2 . . . . . . . . . . . Largest Inventory Capacity 20 | 8 15 15 15 15 15 15 20 20 20 20 20 20 20 20 20 20 20 20 20 20 5 5 5 5 Average Capacity 17 | 7 11 15 15 15 15 15 19 20 20 20 20 20 20 20 20 20 20 20 20 19 5 5 5 5 Most Carried 20 | 6 15 15 15 15 15 15 20 20 20 20 20 20 20 20 20 20 20 20 20 20 4 5 3 2 Average Carried 16 | 5 8 15 14 15 14 15 17 17 19 19 19 19 18 19 19 19 19 19 17 17 2 3 2 2 Final Capacity 20 | 8 15 15 15 15 15 15 20 20 20 20 20 20 20 20 20 20 20 20 20 5 5 5 5 5 Final Carried 20 | 6 15 15 15 15 15 15 15 17 20 20 19 20 20 20 20 20 20 19 15 5 3 3 2 2 Class Distribution -------------------- 38% | Mutant 24% | Scavenger-Mutant 18% | Bothacker-Mutant 10% | Hacker-Mutant 6% | Commander-Mutant Dominant Class ---------------- Mutant | -10/Materials Mutant | -10/Mines Mutant | -9/Materials Mutant | -9/Mines Mutant | -9/Exiles Mutant | -8/Mines Mutant | -8/Materials Mutant | -8/Storage Scavenger-Mutant | -8/Garrison Scavenger-Mutant | -7/Factory Bothacker-Mutant | -7/Garrison Bothacker-Mutant | -7/Factory Bothacker-Mutant | -7/Garrison Bothacker-Mutant | -6/Factory Hacker-Mutant | -5/Factory Hacker-Mutant | -5/Extension Commander-Mutant | -5/Cetus Hacker-Mutant | -5/Archives Hacker-Mutant | -5/Hub_04(d) Scavenger-Mutant | -4/Factory Mutant | -3/Research Scavenger-Mutant | -2/Research Mutant | -2/Testing Mutant | -1/Access Resources | -11 -10 -10 -9 -9 -9 -8 -8 -8 -8 -7 -7 -7 -7 -6 -5 -5 -5 -5 -5 -4 -3 -2 -2 -1 ----------- Run | Scr Mat Min Mat Min Exi Min Mat Sto Gar Fac Gar Fac Gar Fac Fac Ext Cet Arc Hub Fac Res Res Tes Acc Matter Collected 4450 | 170 138 116 327 184 . 68 261 678 231 . 482 . 671 130 122 99 70 73 98 388 101 15 . 28 Remotely 722 | . . . 316 184 . 68 154 . . . . . . . . . . . . . . . . . Salvage Created 6690 | . 138 5 133 32 . 64 528 1256 671 . 592 . 618 195 194 769 134 145 80 670 316 90 . 60 Parts 357 | . 11 2 6 13 . 2 41 69 26 . 30 . 32 14 6 29 9 10 6 27 19 . . 5 Haulers Intercepted 7 | . 1 . 1 . . . 2 1 . . . . . . 1 . . . . 1 . . . . Recyclers Shooed 5 | . . . . . . . . 3 . . . . . . . . . . . 2 . . . . Parts Field Recycled . | . . . . . . . . . . . . . . . . . . . . . . . . . Retrieved Matter . | . . . . . . . . . . . . . . . . . . . . . . . . . Parts Self-Destructed . | . . . . . . . . . . . . . . . . . . . . . . . . . Prevented . | . . . . . . . . . . . . . . . . . . . . . . . . . Kills | -11 -10 -10 -9 -9 -9 -8 -8 -8 -8 -7 -7 -7 -7 -6 -5 -5 -5 -5 -5 -4 -3 -2 -2 -1 ------- Run | Scr Mat Min Mat Min Exi Min Mat Sto Gar Fac Gar Fac Gar Fac Fac Ext Cet Arc Hub Fac Res Res Tes Acc Combat Hostiles Destroyed 151 | . 5 3 2 11 . 3 12 34 18 . 17 . 13 1 1 9 2 . . 8 8 3 . 1 Melee 20 | . . . . . . . 1 . . . . . . 1 1 9 2 . . 5 1 . . . Guns 31 | . 3 . . 1 . . 2 8 7 . 8 . . . . . . . . 1 . . . 1 Cannons 22 | . . . 2 . . 1 3 2 . . . . 13 . . . . . . . 1 . . . AOE 74 | . 2 3 . 10 . 2 6 24 10 . 9 . . . . . . . . . 5 3 . . Classes Destroyed 16 | . 3 . 1 1 . 1 6 3 . . . . . 1 . . . . . . . . . . Worker 5 | . . . . . . . 1 1 . . . . . . . . . . 1 1 . . . 1 Builder 3 | . . . . . . . 1 . . . . . . . . . . . 1 1 . . . . Hauler 7 | . 1 . 1 . . . 2 1 . . . . . . 1 . . . . 1 . . . . Recycler 5 | . . . . . . . 1 2 . . . . . 1 . 1 . . . . . . . . Operator 5 | . . . . . . . 1 . . . . . . . . . . 4 . . . . . . Watcher 4 | . . . . . . . 1 . . . . . . . . . . . 1 1 1 . . . Swarmer 39 | . 3 3 . 7 . . 6 7 . . 3 . 3 . . . . . . 1 5 . . 1 Grunt 67 | . 2 . . . . 2 2 19 14 . 12 . 9 . . 2 . . . 3 1 1 . . Brawler 3 | . . . . . . . . 1 1 . 1 . . . . . . . . . . . . . Duelist 5 | . . . . . . 1 . 2 1 . . . 1 . . . . . . . . . . . Protector 1 | . . . . . . . . 1 . . . . . . . . . . . . . . . . Sentry 17 | . . . 2 . . . 3 2 2 . 1 . . . 1 6 . . . . . . . . Hunter 1 | . . . . . . . . 1 . . . . . . . . . . . . . . . . Programmer 10 | . . . . . . . . . . . . . . 1 . 1 . . . 4 2 2 . . Heavy 2 | . . . . . . . 1 1 . . . . . . . . . . . . . . . . Cetus Guard 2 | . . . . . . . . . . . . . . . . . 2 . . . . . . . Assembled 4 | . . . . 4 . . . . . . . . . . . . . . . . . . . . Best Kill Streak 15 | . 3 3 1 4 . 3 3 15 8 . 14 . 5 1 1 2 2 3 3 4 8 3 . 1 Combat Bots Only 14 | . 3 3 1 4 . 3 3 13 8 . 14 . 5 1 1 2 2 . . 3 7 3 . 1 Max Kills in Single Turn 5 | . 2 2 1 3 . 1 3 5 2 . 2 . 1 1 1 1 1 1 3 1 3 3 . 1 Gunslinging . | . . . . . . . . . . . . . . . . . . . . . . . . . Exploded 5 | . 2 2 . 3 . 1 3 5 2 . 2 . . . . . . . . . 3 3 . . Melee 1 | . . . . . . . 1 . . . . . . 1 1 1 1 . . 1 1 . . . Uniques/NPCs Destroyed . | . . . . . . . . . . . . . . . . . . . . . . . . . Combat | -11 -10 -10 -9 -9 -9 -8 -8 -8 -8 -7 -7 -7 -7 -6 -5 -5 -5 -5 -5 -4 -3 -2 -2 -1 -------- Run | Scr Mat Min Mat Min Exi Min Mat Sto Gar Fac Gar Fac Gar Fac Fac Ext Cet Arc Hub Fac Res Res Tes Acc Damage Taken 22949 | . 40 52 14 162 . 178 1104 1572 568 . 1099 . 1690 74 210 706 819 337 1351 5021 631 4064 966 2291 Core 5507 | . 6 13 . 8 . 29 74 130 61 . 250 . 238 14 55 99 308 115 269 1008 152 507 562 1609 Absorbed by Shields 400 | . . . . . . . 3 81 . . . . . . . 258 58 . . . . . . . Core Remaining (%) 60 | 100 . 92 . . . 90 . . 51 . . . 30 98 . . . . 15 12 88 . 26 . Volleys Fired 333 | . 10 4 19 14 . 4 36 68 29 . 38 . 52 . . 2 . . 2 18 11 22 . 4 Largest 2 | . 2 2 2 2 . 2 2 2 2 . 2 . 2 . . 1 . . 1 1 1 1 . 2 Hottest 240 | . 80 70 78 79 . 74 100 100 100 . 105 . 120 . . 61 . . 35 240 113 113 . 100 Shots Fired 512 | . 18 6 28 15 . 5 62 112 44 . 60 1 98 . . 2 . . 2 18 11 22 . 8 Gun 200 | . 16 . . 1 . . 29 59 30 . 44 1 7 . . . . . 2 3 . . . 8 Cannon 246 | . . 4 28 1 . 2 31 43 2 . . . 91 . . 2 . . . 14 9 19 . . Launcher 65 | . 2 2 . 13 . 3 2 10 12 . 16 . . . . . . . . . 2 3 . . Special 1 | . . . . . . . . . . . . . . . . . . . . 1 . . . . Kinetic 202 | . . 4 28 1 . 2 31 43 4 . 22 1 62 . . 2 . . 2 . . . . . Thermal 138 | . . . . . . . 29 34 . . . . 36 . . . . . . 3 9 19 . 8 Explosive 65 | . 2 2 . 13 . 3 2 10 12 . 16 . . . . . . . . . 2 3 . . Electromagnetic 106 | . 16 . . 1 . . . 25 28 . 22 . . . . . . . . 14 . . . . Robot Hit Streak 11 | . 10 1 5 6 . 5 10 11 11 . 11 . 7 . . 4 . . 5 6 5 6 . 2 Robot Miss Streak 5 | . 1 4 5 1 . . 2 4 3 . 2 . 3 . . . . . . 3 1 . . 2 Penetration Max 1 | . . . . . . . . . . . . . . . . . . . . 1 . . . . Secondary Targets 4 | . . . . . . . . . . . 4 . . . . . . . . . . . . . Max Gunslinging Chain 1 | . . . . . . . . . . . 1 . . . . . . . . . . . . . Shots Hit Robots 437 | . 13 1 8 9 . 4 49 77 31 . 42 . 74 6 7 34 10 13 16 30 8 1 . 4 Core Hits 339 | . 7 3 3 14 . 6 22 71 45 . 45 . 29 3 4 22 6 4 15 12 12 14 . 2 Critical Kills 1 | . . . . . . . . . . . . . . . . . . . . . 1 . . . Critical Parts Destroyed . | . . . . . . . . . . . . . . . . . . . . . . . . . Critical Strikes 10 | . 1 . . . . 1 1 . . . . . 2 . . . 1 . . 3 1 . . . Meltdown 1 | . . . . . . . . . . . . . . . . . . . . . 1 . . . Blast 4 | . . . . . . 1 1 . . . . . 2 . . . . . . . . . . . Corrupt 2 | . 1 . . . . . . . . . . . . . . . . . . 1 . . . . Sever 2 | . . . . . . . . . . . . . . . . . . . . 2 . . . . Puncture 1 | . . . . . . . . . . . . . . . . . 1 . . . . . . . Melee Attacks 198 | . . . . . . . 14 1 . . . 4 13 9 19 44 14 16 24 37 . . 3 . Impact . | . . . . . . . . . . . . . . . . . . . . . . . . . Slashing 110 | . . . . . . . 14 1 . . . 4 13 1 . . 6 13 24 34 . . . . Piercing 80 | . . . . . . . . . . . . . . 6 19 44 8 . . . . . 3 . Sneak Attacks 22 | . . . . . . . 2 . . . . . . 3 2 3 . 8 1 3 . . . . Combat Hostiles 3 | . . . . . . . . . . . . . . . . 2 . . 1 . . . . . Follow-up Attacks . | . . . . . . . . . . . . . . . . . . . . . . . . . Damage Inflicted 21669 | . 403 248 189 722 . 310 1513 3646 2304 . 1605 . 2760 177 320 1401 346 1000 1083 1401 1043 1080 6 112 Guns 2627 | . 156 . . 11 . . 420 824 480 . 542 . 26 . . . . . 16 75 . . . 77 Cannons 3901 | . . . 189 . . 40 459 631 25 . . . 1501 . . 30 . . . 658 368 . . . Explosions 8931 | . 247 248 . 711 . 270 282 2189 1799 . 1063 . . . . . . . 382 . 667 1073 . . Melee 6126 | . . . . . . . 352 . . . . . 1233 177 320 1362 346 1000 672 664 . . . . Ramming 84 | . . . . . . . . 2 . . . . . . . 9 . . 13 4 8 7 6 35 Kinetic 2755 | . . . 189 . . 40 459 631 25 . 217 . 1148 . . 30 . . 16 . . . . . Thermal 1899 | . 27 . . . . . 420 444 109 . . . 379 . . . . . . 75 368 . . 77 Explosive 8369 | . 220 248 . 711 . 270 282 2145 1690 . 1063 . . . . . . . . . 667 1073 . . Electromagnetic 2436 | . 156 . . 11 . . . 424 480 . 325 . . . . . . . 382 658 . . . . Impact . | . . . . . . . . . . . . . . . . . . . . . . . . . Slashing 4126 | . . . . . . . 352 . . . . . 1233 94 . . 111 1000 672 664 . . . . Piercing 2000 | . . . . . . . . . . . . . . 83 320 1362 235 . . . . . . . Highest Corruption 22 | . . . . . . . . . . . 13 13 13 2 . 1 6 6 13 22 6 19 20 8 Average Corruption 8 | . . . . . . . . . . . 12 13 13 1 . 1 2 6 6 7 5 13 19 3 Corruption Purged . | . . . . . . . . . . . . . . . . . . . . . . . . . Effects 106 | . . . . . . . . . . . 1 15 35 2 . . 5 3 5 21 3 13 3 . Message Errors 21 | . . . . . . . . . . . 1 2 7 . . . . . 2 3 . 5 1 . Matter Fused 16 | . . . . . . . . . . . . 2 7 . . . 1 1 . 2 . 3 . . Heat Flow Errors 10 | . . . . . . . . . . . . 2 3 1 . . 1 . . 2 . 1 . . Energy Discharges 22 | . . . . . . . . . . . . 4 7 1 . . 1 1 1 5 2 . . . Parts Rejected 2 | . . . . . . . . . . . . . . . . . . . 1 1 . . . . Data Loss (minor) 22 | . . . . . . . . . . . . 3 5 . . . 2 1 1 8 1 1 . . Data Loss (major) 4 | . . . . . . . . . . . . 1 1 . . . . . . . . . 2 . Misfires 4 | . . . . . . . . . . . . 1 3 . . . . . . . . . . . Alerts 1 | . . . . . . . . . . . . . 1 . . . . . . . . . . . Misdirections 4 | . . . . . . . . . . . . . 1 . . . . . . . . 3 . . Overload Shots 1 | . . . . . . . . . . . . . . . . . . . . 1 . . . . Overflow Damage 953 | . 32 . . 43 . 13 63 22 80 . 18 . 147 . 31 47 . 354 . 37 20 43 . 3 Projectiles 88 | . . . . . . 13 2 13 . . . . 23 . . . . . . 37 . . . . Explosions 245 | . 32 . . 43 . . . 9 80 . 18 . . . . . . . . . 20 43 . . Melee 620 | . . . . . . . 61 . . . . . 124 . 31 47 . 354 . . . . . 3 Knockbacks 22 | . . . 1 . . 1 1 8 . . . . 11 . . . . . . . . . . . Impact . | . . . . . . . . . . . . . . . . . . . . . . . . . Kinetic 21 | . . . 1 . . 1 1 8 . . . . 10 . . . . . . . . . . . Secondary 1 | . . . . . . . . . . . . . 1 . . . . . . . . . . . Self-Inflicted Damage 819 | . . . . 101 . 72 . 233 109 . 154 . . . . 4 . . 108 . 18 . 3 17 Shots 28 | . . . . 5 . 3 . 7 3 . 8 . . . . . . . 1 . 1 . . . Rammed 26 | . . 1 . . . . . 1 . . . . . . . 2 . . 1 3 4 9 1 4 Targets Rammed 27 | . . 1 . . . . . 1 . . . . . . . 2 . . 1 3 5 9 1 4 Kicked . | . . . . . . . . . . . . . . . . . . . . . . . . . Crushed 1 | . . . . . . . . . . . . . . . . . . . . . 1 . . . Highest Temperature 527 | . 60 18 24 14 . 6 527 341 65 . 237 190 193 279 . 16 164 . 26 336 84 122 . . Average Temperature 93 | . 21 10 10 8 . 4 116 104 28 . 98 90 62 141 . 7 54 . 13 112 39 48 . . Received Heat Transfer 3647 | . 12 . 9 20 . 27 144 486 225 . 387 . 864 . 27 178 199 45 189 427 66 198 108 36 Effects 5 | . . . . . . . 1 1 . . . . . . . . . . . 3 . . . . Shutdowns 3 | . . . . . . . 1 1 . . . . . . . . . . . 1 . . . . Energy Bleed 1 | . . . . . . . . . . . . . . . . . . . . 1 . . . . Interference 1 | . . . . . . . . . . . . . . . . . . . . 1 . . . . Siege Activations . | . . . . . . . . . . . . . . . . . . . . . . . . . Robots Corrupted 5 | . . . . . . . . . 1 . . . . . . . . . . 4 . . . . Combat Hostiles 3 | . . . . . . . . . 1 . . . . . . . . . . 2 . . . . Parts Fried 7 | . 1 . . . . . . 1 3 . . . . . . . . . . 2 . . . . Impact Corruptions 1 | . . . . . . . . . . . . . . . . . . . . . . . . 1 Robots Melted 1 | . . . . . . . . . . . . . . . . . . . . . 1 . . . Combat Hostiles 1 | . . . . . . . . . . . . . . . . . . . . . 1 . . . Parts Melted 7 | . . . 1 . . . 1 1 . . . . . . . 2 . . . . 2 . . . Heat Transferred 2901 | . . . . . . . 777 790 100 . . . 703 . . . . . . 87 296 . . 148 Parts Sabotaged . | . . . . . . . . . . . . . . . . . . . . . . . . . Parts Stolen . | . . . . . . . . . . . . . . . . . . . . . . . . . Parts Stripped . | . . . . . . . . . . . . . . . . . . . . . . . . . Power Chain Reactions 4 | . 1 . . . . . . 1 2 . . . . . . . . . . . . . . . Missiles Intercepted . | . . . . . . . . . . . . . . . . . . . . . . . . . Alert | -11 -10 -10 -9 -9 -9 -8 -8 -8 -8 -7 -7 -7 -7 -6 -5 -5 -5 -5 -5 -4 -3 -2 -2 -1 ------- Run | Scr Mat Min Mat Min Exi Min Mat Sto Gar Fac Gar Fac Gar Fac Fac Ext Cet Arc Hub Fac Res Res Tes Acc Peak Influence 1618 | . 185 220 198 167 . 89 388 675 1010 529 739 406 424 251 95 491 545 398 672 305 236 377 1618 1252 Initial 1100 | . . 72 44 76 . . 34 79 438 529 370 387 179 222 24 27 274 218 34 267 20 132 200 1100 Average 278 | . 74 147 123 141 . 83 183 269 778 529 547 383 353 222 40 164 413 285 264 167 84 166 1573 1161 Maximum Alert Level 5 | . . 1 . . . . 1 2 3 2 3 2 2 1 . 2 2 1 2 1 1 1 5 4 Low Security (%) 48 | 100 100 76 100 100 . 100 61 27 . . . . 4 4 100 64 . 26 60 64 79 79 . . Level 1 31 | . . 23 . . . . 38 61 . . 38 85 54 95 . 25 55 73 5 35 20 20 1 . Level 2 12 | . . . . . . . . 11 44 100 22 14 41 . . 10 44 . 34 . . . . . Level 3 5 | . . . . . . . . . 55 . 39 . . . . . . . . . . . . . Level 4 1 | . . . . . . . . . . . . . . . . . . . . . . . . 100 Level 5 . | . . . . . . . . . . . . . . . . . . . . . . . . . High Security . | . . . . . . . . . . . . . . . . . . . . . . . . . Max Security . | . . . . . . . . . . . . . . . . . . . . . . . 98 . Squads Dispatched 32 | . 2 . 1 . . . 3 8 . . . 1 . 1 1 3 . . 1 6 1 4 . . Investigation 5 | . 1 . . . . . 1 1 . . . . . . . 1 . . . . . 1 . . Extermination 8 | . . . . . . . . . . . . 1 . 1 1 . . . . 3 1 1 . . Reinforcement 15 | . 1 . 1 . . . 2 3 . . . . . . . 2 . . 1 3 . 2 . . Assault 2 | . . . . . . . . 2 . . . . . . . . . . . . . . . . Garrison 2 | . . . . . . . . 2 . . . . . . . . . . . . . . . . Intercept . | . . . . . . . . . . . . . . . . . . . . . . . . . Construction Impeded 1 | . . . . . . . . . . . . . . . . 1 . . . . . . . . Haulers Reinforced . | . . . . . . . . . . . . . . . . . . . . . . . . . Active Scanning Responses . | . . . . . . . . . . . . . . . . . . . . . . . . . Cargo Convoy Interrupts 2 | . . . . . . . . . . . . . . . . . . . . 1 . 1 . . Stealth | -11 -10 -10 -9 -9 -9 -8 -8 -8 -8 -7 -7 -7 -7 -6 -5 -5 -5 -5 -5 -4 -3 -2 -2 -1 --------- Run | Scr Mat Min Mat Min Exi Min Mat Sto Gar Fac Gar Fac Gar Fac Fac Ext Cet Arc Hub Fac Res Res Tes Acc Distress Signals 7 | . . . 1 . . . 1 . . . . . . . . . 1 . . 2 1 . . 1 Communications Jammed 14 | . . . . . . . 2 . . . . . . . . . . . . 12 . . . . Distress Signals 14 | . . . . . . . 2 . . . . . . . . . . . . 12 . . . . Times Spotted 363 | . 8 7 6 12 . 3 14 37 17 . 20 1 12 2 11 33 16 8 15 50 12 45 8 26 Peak Tracking Total 24 | . 3 3 3 4 . 3 7 7 7 . 6 2 7 2 5 6 10 3 7 24 6 14 10 14 Tactical Retreats 28 | . . 1 . . . . 2 . 1 . 1 . 1 . 3 . . . . 4 . 10 . 5 Traps | -11 -10 -10 -9 -9 -9 -8 -8 -8 -8 -7 -7 -7 -7 -6 -5 -5 -5 -5 -5 -4 -3 -2 -2 -1 ------- Run | Scr Mat Min Mat Min Exi Min Mat Sto Gar Fac Gar Fac Gar Fac Fac Ext Cet Arc Hub Fac Res Res Tes Acc Traps Triggered 18 | . 1 . . . . . 1 . . . 1 . 6 . 1 2 . . . 5 . . 1 . Indirectly . | . . . . . . . . . . . . . . . . . . . . . . . . . Trap Hack Attempts 1 | . . . . . . . . . . . . . . 1 . . . . . . . . . . Triggered . | . . . . . . . . . . . . . . . . . . . . . . . . . Disarmed 6 | . . . . . . . . 6 . . . . . . . . . . . . . . . . Reprogrammed . | . . . . . . . . . . . . . . . . . . . . . . . . . Reused . | . . . . . . . . . . . . . . . . . . . . . . . . . Traps Extracted . | . . . . . . . . . . . . . . . . . . . . . . . . . Installed . | . . . . . . . . . . . . . . . . . . . . . . . . . Triggered 2 | . . . . . . . . . . . . . . . . . . . . 2 . . . . Machines | -11 -10 -10 -9 -9 -9 -8 -8 -8 -8 -7 -7 -7 -7 -6 -5 -5 -5 -5 -5 -4 -3 -2 -2 -1 ---------- Run | Scr Mat Min Mat Min Exi Min Mat Sto Gar Fac Gar Fac Gar Fac Fac Ext Cet Arc Hub Fac Res Res Tes Acc Machines Disabled 38 | . 3 1 1 1 . . 1 7 1 . . . 1 . . 2 1 1 18 . . . . . Max in Single Turn 17 | . 3 1 1 1 . . 1 2 1 . . . 1 . . . . . 17 . . . . . Garrison Relay 2 | . . . . . . . . . 1 . . . 1 . . . . . . . . . . . Network Hub 1 | . . . . . . . . . . . . . . . . . . . 1 . . . . . Machines Sabotaged . | . . . . . . . . . . . . . . . . . . . . . . . . . Garrisons Compromised 1 | . . . . . . . . . . . . . . . . . . . . 1 . . . . Overloaded Fab Kills . | . . . . . . . . . . . . . . . . . . . . . . . . . Hacking | -11 -10 -10 -9 -9 -9 -8 -8 -8 -8 -7 -7 -7 -7 -6 -5 -5 -5 -5 -5 -4 -3 -2 -2 -1 --------- Run | Scr Mat Min Mat Min Exi Min Mat Sto Gar Fac Gar Fac Gar Fac Fac Ext Cet Arc Hub Fac Res Res Tes Acc Machines Accessed 47 | . 3 1 1 1 2 . 5 3 . 1 . 5 . . 6 6 1 . 4 2 . 2 . 4 Terminals 39 | . 3 1 1 1 . . 5 1 . . . 4 . . 6 6 1 . 4 2 . 2 . 2 Fabricators 1 | . . . . . . . . . . . . . . . . . . . . . . . . 1 Repair Stations 1 | . . . . . . . . . . . . . . . . . . . . . . . . 1 Recycling Units 1 | . . . . . . . . 1 . . . . . . . . . . . . . . . . Scanalyzers . | . . . . . . . . . . . . . . . . . . . . . . . . . Garrison Access 3 | . . . . . . . . 1 . 1 . 1 . . . . . . . . . . . . Total Hacks 112 | . 16 4 5 3 2 . 13 8 . 1 . 7 . . 15 10 1 . 14 3 . 4 . 6 Successful 62 | . 8 1 4 2 2 . 9 6 . 1 . 2 . . 11 6 1 . 5 2 . 1 . 1 Failed 50 | . 8 3 1 1 . . 4 2 . . . 5 . . 4 4 . . 9 1 . 3 . 5 Catastrophic 11 | . . . . . . . 1 . . . . 2 . . . 1 . . 4 . . 1 . 2 Database Lockouts . | . . . . . . . . . . . . . . . . . . . . . . . . . Manual 56 | . 7 . 4 3 1 . 8 1 . . . 3 . . 8 2 1 . 13 1 . . . 4 Terminals 100 | . 16 4 5 3 . . 13 4 . . . 6 . . 15 10 1 . 14 3 . 4 . 2 Fabricators 2 | . . . . . . . . . . . . . . . . . . . . . . . . 2 Repair Stations 2 | . . . . . . . . . . . . . . . . . . . . . . . . 2 Recycling Units 3 | . . . . . . . . 3 . . . . . . . . . . . . . . . . Scanalyzers . | . . . . . . . . . . . . . . . . . . . . . . . . . Garrison Access 3 | . . . . . . . . 1 . 1 . 1 . . . . . . . . . . . . Terminal Hacks 42 | . 6 1 3 1 2 . 5 3 . . . 1 . . 7 6 1 . 3 2 . 1 . . Record 2 | . 1 . . . 1 . . . . . . . . . . . . . . . . . . . Robot Analysis 1 | . . . . . . . . . . . . . . . . 1 . . . . . . . . Prototype ID Bank 5 | . 1 . . . . . 1 . . . . . . . 2 1 . . . . . . . . Open Door 6 | . . . . . . . . . . . . . . . 1 4 1 . . . . . . . Open DSF 3 | . . . . . . . . . . . . . . . 1 . . . . 1 . 1 . . Level Access Points 2 | . . . . . . . . . . . . . . . . . . . 1 1 . . . . Branch Access Points 4 | . 1 . 1 . . . 1 . . . . . . . 1 . . . . . . . . . Terminal Index 5 | . . . . 1 . . 1 1 . . . . . . 1 . . . 1 . . . . . Alert Level 2 | . . . 1 . . . 1 . . . . . . . . . . . . . . . . . Unreport Threat 2 | . . . . . . . . . . . . 1 . . . . . . 1 . . . . . Locate Traps 2 | . . . . . . . . 1 . . . . . . 1 . . . . . . . . . Disarm Traps 1 | . . . . . . . . 1 . . . . . . . . . . . . . . . . Maintenance Status 1 | . 1 . . . . . . . . . . . . . . . . . . . . . . . Investigation Status 1 | . . 1 . . . . . . . . . . . . . . . . . . . . . . Hauler Manifests 2 | . 1 . 1 . . . . . . . . . . . . . . . . . . . . . Zone Layout 2 | . 1 . . . . . 1 . . . . . . . . . . . . . . . . . EX-Prototype ID Bank 1 | . . . . . 1 . . . . . . . . . . . . . . . . . . . Fabricator Hacks . | . . . . . . . . . . . . . . . . . . . . . . . . . Repair Station Hacks 1 | . . . . . . . . . . . . . . . . . . . . . . . . 1 Refit 1 | . . . . . . . . . . . . . . . . . . . . . . . . 1 Recycling Unit Hacks 2 | . . . . . . . . 2 . . . . . . . . . . . . . . . . Report Inventory 1 | . . . . . . . . 1 . . . . . . . . . . . . . . . . Retrieve Components 1 | . . . . . . . . 1 . . . . . . . . . . . . . . . . Scanalyzer . | . . . . . . . . . . . . . . . . . . . . . . . . . Garrison Access Hacks 3 | . . . . . . . . 1 . 1 . 1 . . . . . . . . . . . . Unlock Access 3 | . . . . . . . . 1 . 1 . 1 . . . . . . . . . . . . Unauthorized Hacks 14 | . 2 . 1 1 . . 4 . . . . . . . 4 . . . 2 . . . . . Terminals 14 | . 2 . 1 1 . . 4 . . . . . . . 4 . . . 2 . . . . . Track 2 | . . . . 1 . . . . . . . . . . 1 . . . . . . . . . Assimilate 2 | . . . . . . . . . . . . . . . 1 . . . 1 . . . . . Botnet 7 | . 1 . 1 . . . 3 . . . . . . . 2 . . . . . . . . . Detonate 1 | . . . . . . . . . . . . . . . . . . . 1 . . . . . Disrupt 1 | . . . . . . . 1 . . . . . . . . . . . . . . . . . Operators 1 | . 1 . . . . . . . . . . . . . . . . . . . . . . . Fabricators . | . . . . . . . . . . . . . . . . . . . . . . . . . Repair Stations . | . . . . . . . . . . . . . . . . . . . . . . . . . Recycling Units . | . . . . . . . . . . . . . . . . . . . . . . . . . Scanalyzers . | . . . . . . . . . . . . . . . . . . . . . . . . . Garrison Access . | . . . . . . . . . . . . . . . . . . . . . . . . . Data Cores Recovered 1 | . . . . . . . 1 . . . . . . . . . . . . . . . . . Used 1 | . . . . . . . 1 . . . . . . . . . . . . . . . . . Hacking Detections 32 | . 2 1 1 . . . 4 1 . 1 . 4 . . 3 4 2 . 4 1 . 1 . 3 Full Trace Events 4 | . . . 1 . . . 1 1 . . . . . . . . . . . . . 1 . . Feedback Events . | . . . . . . . . . . . . . . . . . . . . . . . . . Feedback Blocked . | . . . . . . . . . . . . . . . . . . . . . . . . . Robot Schematics Acquired . | . . . . . . . . . . . . . . . . . . . . . . . . . Robots Built . | . . . . . . . . . . . . . . . . . . . . . . . . . Authchips . | . . . . . . . . . . . . . . . . . . . . . . . . . Time . | . . . . . . . . . . . . . . . . . . . . . . . . . Total Robot Build Rating . | . . . . . . . . . . . . . . . . . . . . . . . . . Part Schematics Acquired . | . . . . . . . . . . . . . . . . . . . . . . . . . Parts Built . | . . . . . . . . . . . . . . . . . . . . . . . . . Authchips . | . . . . . . . . . . . . . . . . . . . . . . . . . Time . | . . . . . . . . . . . . . . . . . . . . . . . . . Total Part Build Rating . | . . . . . . . . . . . . . . . . . . . . . . . . . Parts Repaired . | . . . . . . . . . . . . . . . . . . . . . . . . . Time . | . . . . . . . . . . . . . . . . . . . . . . . . . Parts Recycled . | . . . . . . . . . . . . . . . . . . . . . . . . . Recycled Matter . | . . . . . . . . . . . . . . . . . . . . . . . . . Retrieved Matter . | . . . . . . . . . . . . . . . . . . . . . . . . . Retrieved Components 3 | . . . . . . . . 3 . . . . . . . . . . . . . . . . Parts Scanalyzed . | . . . . . . . . . . . . . . . . . . . . . . . . . Part Schematics Acquired . | . . . . . . . . . . . . . . . . . . . . . . . . . Parts Damaged . | . . . . . . . . . . . . . . . . . . . . . . . . . Bothacking | -11 -10 -10 -9 -9 -9 -8 -8 -8 -8 -7 -7 -7 -7 -6 -5 -5 -5 -5 -5 -4 -3 -2 -2 -1 ------------ Run | Scr Mat Min Mat Min Exi Min Mat Sto Gar Fac Gar Fac Gar Fac Fac Ext Cet Arc Hub Fac Res Res Tes Acc Used RIF Installer 3 | . . . . . . . . . 1 . 1 . 1 . . . . . . . . . . . Threat Obfuscator 1 | . . . . . . . . . . . . . 1 . . . . . . . . . . . Robot Detection 1 | . . . . . . . . . . . 1 . . . . . . . . . . . . . Robots Hacked 3 | . . . . . . . . . . . . . . . . . . 1 . 2 . . . . Non-combat 3 | . . . . . . . . . . . . . . . . . . 1 . 2 . . . . Combat . | . . . . . . . . . . . . . . . . . . . . . . . . . Robot Hacks Applied 6 | . . . . . . . . . . . . . . . . . . 3 . 3 . . . . find_dsf 1 | . . . . . . . . . . . . . . . . . . . . 1 . . . . drop_inventory 2 | . . . . . . . . . . . . . . . . . . . . 2 . . . . purge_threat 2 | . . . . . . . . . . . . . . . . . . 2 . . . . . . block_reporting 1 | . . . . . . . . . . . . . . . . . . 1 . . . . . . Relay Couplers Released 9 | . . . . . . . . . 4 . . . 5 . . . . . . . . . . . Machine Destruction 9 | . . . . . . . . . 4 . . . 5 . . . . . . . . . . . Attached 6 | . . . . . . . . . 1 . . . 2 1 . . . . . 1 1 . . . Robots Rewired 18 | . . . . . . . . . . . . . . . . 18 . . . . . . . . Allies Hacked . | . . . . . . . . . . . . . . . . . . . . . . . . . Hacks Repelled . | . . . . . . . . . . . . . . . . . . . . . . . . . Allies | -11 -10 -10 -9 -9 -9 -8 -8 -8 -8 -7 -7 -7 -7 -6 -5 -5 -5 -5 -5 -4 -3 -2 -2 -1 -------- Run | Scr Mat Min Mat Min Exi Min Mat Sto Gar Fac Gar Fac Gar Fac Fac Ext Cet Arc Hub Fac Res Res Tes Acc Total Allies 34 | . . 3 . . . . . 2 . . . . . . 1 22 5 . 1 . . . . . Largest Group 12 | . . 3 3 . . . . 2 . . . . . . 1 10 12 9 9 . . . . . Highest-Rated Group 777 | . . 40 40 . . . . 62 . . . . . . 26 411 777 568 569 . . . . . Highest-Rated Ally 159 | . . 16 16 . . . . 31 . . . . . . 26 159 159 95 95 . . . . . Total Orders 1 | . . . . . . . . . . . . . . . 1 . . . . . . . . . ROAM 1 | . . . . . . . . . . . . . . . 1 . . . . . . . . . Ally Attacks 436 | . . 11 23 1 . . . 16 . . . . . . . 215 60 32 78 . . . . . Total Damage 10984 | . . 130 245 . . . . 251 . . . . . . . 4853 1933 1363 2209 . . . . . Kills 62 | . . 5 2 . . . . . . . . . . . . 28 13 4 10 . . . . . Allies Corrupted 7 | . . . . . . . . . . . . . . . . 1 . . 6 . . . . . Allies Melted . | . . . . . . . . . . . . . . . . . . . . . . . . . Intel | -11 -10 -10 -9 -9 -9 -8 -8 -8 -8 -7 -7 -7 -7 -6 -5 -5 -5 -5 -5 -4 -3 -2 -2 -1 ------- Run | Scr Mat Min Mat Min Exi Min Mat Sto Gar Fac Gar Fac Gar Fac Fac Ext Cet Arc Hub Fac Res Res Tes Acc Robot Analysis Total 1 | . . . . . . . . . . . . . . . . 1 . . . . . . . . Derelict Logs Recovered 3 | . . 3 . . . . . . . . . . . . . . . . . . . . . . Drone Launches . | . . . . . . . . . . . . . . . . . . . . . . . . . Drone Recoveries . | . . . . . . . . . . . . . . . . . . . . . . . . . Exploration | -11 -10 -10 -9 -9 -9 -8 -8 -8 -8 -7 -7 -7 -7 -6 -5 -5 -5 -5 -5 -4 -3 -2 -2 -1 ------------- Run | Scr Mat Min Mat Min Exi Min Mat Sto Gar Fac Gar Fac Gar Fac Fac Ext Cet Arc Hub Fac Res Res Tes Acc Turns Passed 12424 | 206 337 695 381 461 448 112 870 1116 835 174 593 307 900 420 513 985 337 155 208 1115 381 655 54 166 Spaces Moved 8395 | 58 227 516 262 276 358 55 500 320 406 101 207 166 302 513 725 801 203 156 180 764 244 695 74 286 Core 919 | 1 . . . . . . . . . . . . . . . . . . . . 76 487 74 281 Treads 1360 | . 1 . . . . . 49 320 406 101 104 . . . . . . . . 3 168 208 . . Legs 546 | 46 118 . . . . . . . . . 98 117 142 . . . . . . 25 . . . . Wheels 2223 | 11 108 516 262 276 358 55 451 . . . 5 49 127 . . . . . . . . . . 5 Hover 3347 | . . . . . . . . . . . . . 33 513 725 801 203 156 180 736 . . . . Flight . | . . . . . . . . . . . . . . . . . . . . . . . . . Fastest Speed 46 | 50 110 125 125 125 125 125 110 155 160 160 120 115 68 63 58 52 52 52 54 46 50 50 50 50 Average Speed 105 | 111 117 125 125 125 125 125 127 233 177 160 187 167 196 63 58 57 52 53 55 85 125 80 60 50 Slowest Speed 470 | 120 240 125 125 125 125 125 240 240 240 160 470 190 470 64 58 118 52 54 108 250 170 180 250 90 Overloaded Moves . | . . . . . . . . . . . . . . . . . . . . . . . . . Propulsion Burnouts . | . . . . . . . . . . . . . . . . . . . . . . . . . Robots Hopped . | . . . . . . . . . . . . . . . . . . . . . . . . . Cave-ins Triggered . | . . . . . . . . . . . . . . . . . . . . . . . . . Exploration Rate (%) 39 | 5 44 97 24 58 87 21 55 52 63 3 39 6 50 9 18 86 72 77 19 27 12 31 15 13 Regions Visited 24 Branch Regions 10 Pre-discovered Areas 2 | . . 1 . . 1 . . . . . . . . . . . . . . . . . . . Known Exits Taken 9 | . 1 . 1 . . . 1 1 . 1 . 1 . . 1 . . . 1 1 . . . . Unknown Exits Taken 12 | 1 . 1 . 1 1 1 . . . . . . . 1 . 1 1 1 . . 1 1 1 . Scrap Searched 2 | . . 1 . 1 . . . . . . . . . . . . . . . . . . . . Spaces Dug 58 | . . . 1 . . . 16 . . . . 4 . 2 11 2 . . 2 6 . 12 2 . Terrain Destroyed 587 | . 19 22 1 125 . 29 26 60 30 . 38 4 . 2 11 2 . . 162 6 17 31 2 . Melee 35 | . . . . . . . 6 . . . . 4 . 2 11 2 . . 2 6 . . 2 . Projectile 25 | . . . 1 1 . . 1 2 . . . . . . . . . . . . 1 19 . . AOE 527 | . 19 22 . 124 . 29 19 58 30 . 38 . . . . . . . 160 . 16 12 . . Terrain Rammed . | . . . . . . . . . . . . . . . . . . . . . . . . . Walls Destroyed . | . . . . . . . . . . . . . . . . . . . . . . . . . Machines Disabled . | . . . . . . . . . . . . . . . . . . . . . . . . . Actions | -11 -10 -10 -9 -9 -9 -8 -8 -8 -8 -7 -7 -7 -7 -6 -5 -5 -5 -5 -5 -4 -3 -2 -2 -1 --------- Run | Scr Mat Min Mat Min Exi Min Mat Sto Gar Fac Gar Fac Gar Fac Fac Ext Cet Arc Hub Fac Res Res Tes Acc Total 11088 | 196 278 557 289 375 359 92 649 567 476 115 352 186 494 599 792 1252 412 206 248 1155 303 761 78 297 Wait 1464 | 126 19 34 . 82 . 32 50 132 18 . 82 3 41 38 14 258 184 27 28 254 24 18 . . Move 8376 | 57 226 515 261 275 357 54 499 320 405 101 206 166 300 512 724 800 202 155 180 764 243 694 74 286 Hop . | . . . . . . . . . . . . . . . . . . . . . . . . . Pick Up 95 | 5 10 . 1 . 1 . 9 8 7 5 3 1 14 8 7 . . 1 2 12 . 1 . . Fast Attach 132 | 7 3 . 1 . . . 11 11 6 1 6 7 10 9 9 7 5 1 3 16 9 7 . 3 Attach 76 | . . . 1 . . . 10 4 1 2 4 . 8 3 2 1 2 3 8 18 5 3 1 . Detach 45 | 1 . . . . . . 6 . . . 1 1 2 3 4 1 4 1 1 11 5 4 . . Swap 67 | . 6 3 3 4 . 2 8 14 5 1 6 1 6 2 1 1 . 2 . 2 . . . . Drop 90 | . 4 . 3 . 1 . 6 8 5 5 1 3 12 14 12 3 1 . . 8 1 3 . . Fire 333 | . 10 4 19 14 . 4 36 68 29 . 38 . 52 . . 2 . . 2 18 11 22 . 4 Melee 198 | . . . . . . . 14 1 . . . 4 13 9 19 44 14 16 24 37 . . 3 . Ram 6 | . . . . . . . . . . . . . . . . 2 . . . . . . . 4 Kick . | . . . . . . . . . . . . . . . . . . . . . . . . . Crush 18 | . . 1 . . . . . 1 . . . . . . . . . . . 2 5 9 . . Escape Stasis 80 | . . . . . . . . . . . 5 . 36 . . 26 . . . 13 . . . . Rewire 107 | . . . . . . . . . . . . . . . . 107 . . . . . . . . Trap 1 | . . . . . . . . . . . . . . 1 . . . . . . . . . . Miscellaneous . | . . . . . . . . . . . . . . . . . . . . . . . . . Route ------- -11/Scrapyard -10/Materials (discovered 3 exits: *Mat / *Min x2) -10/Mines (discovered 2 exits: *Mat x2) -9/Materials (discovered 2 exits: *Min x2) -9/Mines -9/Exiles -8/Mines -8/Materials (discovered 3 exits: *Fac x2 / *Sto) -8/Storage (discovered 2 exits: Rec / Gar) -8/Garrison (discovered 2 exits: *Fac x2) -7/Factory -7/Garrison -7/Factory -7/Garrison -6/Factory (discovered 2 exits: *Fac x2) -5/Factory (discovered 5 exits: *Fac / Upp x2 / *Ext x2) -5/Extension (discovered 3 exits: *Fac x2 / *Cet) -5/Cetus -5/Archives (discovered 3 exits: *Fac / *Hub x2) -5/Hub_04(d) (discovered 4 exits: *Fac x4) -4/Factory (discovered 4 exits: *Res x4) -3/Research -2/Research -2/Testing -1/Access History --------- Turn | Location | Event 14 | -11/Scrapyard | Discovered new exit (range 14) 207 | -11/Scrapyard | Entered Materials 252 | -10/Materials | Identified exit to Mines 322 | -10/Materials | Build established: Mutant 342 | -10/Materials | Discovered new exit (range 5) 544 | -10/Materials | Entered Mines 613 | -10/Mines | Discovered new exit (range 12) 676 | -10/Mines | Learned location of Mines (-9) 690 | -10/Mines | Received a Rocket Launcher from a helpful Derelict 710 | -10/Mines | Discovered new exit (range 9) 726 | -10/Mines | Assisted by bots powering up and referring to "LRC-V3" 1027 | -10/Mines | Learned Materials interactive machine intel 1239 | -10/Mines | Entered Materials 1239 | -9/Materials | Accompanied by 3 allies 1239 | -9/Materials | Evolved 2 slots: Propulsion x1, Utility x1 1240 | -9/Materials | Loaded intel: 18 interactive machine locations 1377 | -9/Materials | Identified exit to Mines 1620 | -9/Materials | Entered Mines 1620 | -9/Mines | Accompanied by 1 ally 1621 | -9/Mines | Assembled infested the area 1626 | -9/Mines | Assisted by a Guerilla fighting off Assembled 2075 | -9/Mines | Deemed a non-threat by the Exiles lab entrance 2075 | -9/Mines | Discovered new exit (range 5) 2081 | -9/Mines | Entered Exiles 2111 | -9/Exiles | Met 8R-AWN 2133 | -9/Exiles | Met EX-HEX 2170 | -9/Exiles | Met EX-BIN 2185 | -9/Exiles | Aligned with FarCom system 2186 | -9/Exiles | Given EX-Vault access code 2216 | -9/Exiles | Opened EX-Vault 2227 | -9/Exiles | Found Skeleton Box 2253 | -9/Exiles | Warned to stay clear of 0b10 Research branches 2289 | -9/Exiles | Met EX-DEC 2330 | -9/Exiles | Visited The Gauntlet 2474 | -9/Exiles | Learned location of Zion (-6) 2515 | -9/Exiles | Discovered new exit (range 14) 2529 | -9/Exiles | Left Exiles lab with Skeleton Box 2529 | -9/Exiles | Entered Mines 2628 | -8/Mines | Discovered new exit (range 11) 2641 | -8/Mines | Entered Materials 2641 | -8/Materials | Evolved 2 slots: Utility x2 2892 | -8/Materials | Identified exit to Storage 2997 | -8/Materials | Discovered new exit (range 10) 3263 | -8/Materials | Discovered new exit (range 4) 3427 | -8/Materials | Lost 10 parts (1p4n4u1w) 3511 | -8/Materials | Entered Storage 3512 | -8/Storage | Identified exit to Recycling 3570 | -8/Storage | Lost 4 parts (1p1n2u) 4273 | -8/Storage | Build established: Scavenger-Mutant 4392 | -8/Storage | Met a pair of Derelict thieves 4455 | -8/Storage | Garrison activated, responded to threat 4479 | -8/Storage | Destroyed 7 combat bots 4530 | -8/Storage | Lost 3 parts (2n1u) 4544 | -8/Storage | Destroyed 13 combat bots 4627 | -8/Storage | Identified exit to Garrison 4627 | -8/Storage | Entered Garrison 4717 | -8/Garrison | Build established: Mutant 4792 | -8/Garrison | Triggered checkpoint 4917 | -8/Garrison | Discovered new exit (range 10) 4993 | -8/Garrison | Triggered checkpoint 5035 | -8/Garrison | Destroyed 8 combat bots 5114 | -8/Garrison | Build established: Scavenger-Mutant 5146 | -8/Garrison | Discovered new exit (range 8) 5169 | -8/Garrison | Installed Relay Interface Framework 5276 | -8/Garrison | Triggered checkpoint 5316 | -8/Garrison | Garrison Relay disabled 5462 | -8/Garrison | Entered Factory 5462 | -7/Factory | Evolved 2 slots: Propulsion x1, Utility x1 5636 | -7/Factory | Identified exit to Garrison 5636 | -7/Factory | Entered Garrison 5644 | -7/Garrison | Expanded RIF knowledge: Robot Detection 5956 | -7/Garrison | Triggered checkpoint 5966 | -7/Garrison | Triggered checkpoint 5998 | -7/Garrison | Lost 7 parts (3n3u1w) 6031 | -7/Garrison | Destroyed 14 combat bots 6163 | -7/Garrison | Build established: Bothacker-Mutant 6202 | -7/Garrison | Discovered new exit (range 9) 6221 | -7/Garrison | System corruption reached 10% 6229 | -7/Garrison | Entered Factory 6536 | -7/Factory | Identified exit to Garrison 6536 | -7/Factory | Entered Garrison 6642 | -7/Garrison | Triggered checkpoint 6677 | -7/Garrison | Garrison Relay disabled 6866 | -7/Garrison | Core integrity fell below 50% 6932 | -7/Garrison | Lost 11 parts (1p6n2u2w) 7092 | -7/Garrison | Lost 3 parts (1p1u1w) 7110 | -7/Garrison | Triggered checkpoint 7258 | -7/Garrison | Discovered new exit (range 13) 7303 | -7/Garrison | Expanded RIF knowledge: Threat Obfuscation 7436 | -7/Garrison | Entered Factory 7436 | -6/Factory | Evolved 2 slots: Propulsion x1, Utility x1 7610 | -6/Factory | Discovered new exit (range 4) 7840 | -6/Factory | Discovered new exit (range 9) 7856 | -6/Factory | Entered another Factory area 7856 | -5/Factory | Evolved 2 slots: Propulsion x1, Utility x1 7944 | -5/Factory | Discovered new exit (range 8) 8137 | -5/Factory | Found Prototype Processor 8137 | -5/Factory | Identified Exp. Targeting Computer 8255 | -5/Factory | Build established: Hacker-Mutant 8292 | -5/Factory | Identified exit to Upper Caves 8292 | -5/Factory | Identified exit to Extension 8369 | -5/Factory | Entered Extension 8400 | -5/Extension | Rescued a captive Derelict 8401 | -5/Extension | Rescued a captive Derelict 8433 | -5/Extension | Rescued A7 8925 | -5/Extension | Spotted B-75 Beast 8933 | -5/Extension | Build established: Commander-Mutant 8940 | -5/Extension | Spotted B-75 Beast 8945 | -5/Extension | Allies destroyed B-75 Beast 8969 | -5/Extension | Allies destroyed B-75 Beast 8972 | -5/Extension | Discovered new exit (range 7) 9191 | -5/Extension | Rescued a captive Derelict 9304 | -5/Extension | Discovered new exit (range 10) 9304 | -5/Extension | Discovered new exit (range 6) 9354 | -5/Extension | Entered Cetus 9354 | -5/Cetus | Accompanied by 10 allies (A7) 9359 | -5/Cetus | Acquired a Cetus Manufacturing Module code from A7 9362 | -5/Cetus | Spotted Cetus Guard 9363 | -5/Cetus | Spotted Cetus Guard 9364 | -5/Cetus | Spotted Cetus Guard 9368 | -5/Cetus | Spotted Cetus Guard 9372 | -5/Cetus | Allies destroyed Cetus Guard 9382 | -5/Cetus | Destroyed Cetus Guard 9385 | -5/Cetus | Destroyed Cetus Guard 9391 | -5/Cetus | Allies destroyed Cetus Guard 9412 | -5/Cetus | Started Cetus Manufacturing Module 9426 | -5/Cetus | Escorted A7 to Cetus Mainframe 9437 | -5/Cetus | Manufactured an Enhanced Grunt 9462 | -5/Cetus | Manufactured an Enhanced Grunt 9487 | -5/Cetus | Manufactured an Enhanced Grunt 9512 | -5/Cetus | Manufactured an Enhanced Grunt 9537 | -5/Cetus | Manufactured an Enhanced Grunt 9637 | -5/Cetus | Discovered new exit (range 15) 9691 | -5/Cetus | Entered Archives 9691 | -5/Archives | Accompanied by 9 allies 9703 | -5/Archives | Unable to access archive contents 9707 | -5/Archives | Core integrity fell below 50% 9709 | -5/Archives | Discovered new exit (range 13) 9722 | -5/Archives | Discovered new exit (range 15) 9745 | -5/Archives | Discovered new exit (range 14) 9846 | -5/Archives | Entered Hub_04(d) 9846 | -5/Hub_04(d) | Accompanied by 9 allies 9912 | -5/Hub_04(d) | Identified exit to Factory 9962 | -5/Hub_04(d) | Lost 3 parts (1p2u) 9983 | -5/Hub_04(d) | Network Hub disabled 10003 | -5/Hub_04(d) | Spotted Lightning 10003 | -5/Hub_04(d) | Spotted Lightning 10003 | -5/Hub_04(d) | Spotted Lightning 10012 | -5/Hub_04(d) | Allies destroyed Lightning 10015 | -5/Hub_04(d) | Found Prototype Energy Cannon 10016 | -5/Hub_04(d) | Found Prototype Device 10016 | -5/Hub_04(d) | Identified EM Dispersion Field 10039 | -5/Hub_04(d) | Build established: Hacker-Mutant 10045 | -5/Hub_04(d) | System corruption reached 10% 10053 | -5/Hub_04(d) | Core integrity fell below 20% 10054 | -5/Hub_04(d) | Entered Factory 10054 | -4/Factory | Evolved 2 slots: Power x1, Propulsion x1 10055 | -4/Factory | Identified EMDS 10072 | -4/Factory | Lost 5 parts (1p2n1u1w) 10349 | -4/Factory | Build established: Scavenger-Mutant 10533 | -4/Factory | Lost 4 parts (1p2n1w) 10695 | -4/Factory | Lost 3 parts (1p1n1u) 10860 | -4/Factory | Spotted B-86 Titan 10914 | -4/Factory | Cargo convoy interrupted 11001 | -4/Factory | Identified exit to Research 11135 | -4/Factory | System corruption reached 10% 11140 | -4/Factory | Spotted Executioner 11155 | -4/Factory | Core integrity fell below 50% 11167 | -4/Factory | Core integrity fell below 20% 11169 | -4/Factory | Entered Research 11169 | -3/Research | Evolved 2 slots: Utility x2 11198 | -3/Research | Lost 18 parts (2p10n4u2w) 11425 | -3/Research | Build established: Mutant 11491 | -3/Research | Destroyed 7 combat bots 11541 | -3/Research | Discovered new exit (range 6) 11550 | -3/Research | Entered another Research area 11550 | -2/Research | Evolved 2 slots: Utility x2 11752 | -2/Research | Build established: Scavenger-Mutant 11912 | -2/Research | Spotted B-90 Cyclops 11948 | -2/Research | System corruption reached 10% 11981 | -2/Research | Lost 8 parts (4n3u1w) 12008 | -2/Research | Spotted B-90 Cyclops 12145 | -2/Research | Spotted B-90 Cyclops 12169 | -2/Research | Cargo convoy interrupted 12196 | -2/Research | Discovered new exit (range 16) 12205 | -2/Research | Entered Testing 12206 | -2/Testing | Maximum security lockdown engaged 12208 | -2/Testing | Build established: Mutant 12246 | -2/Testing | Discovered new exit (range 5) 12251 | -2/Testing | Spotted PL-5NITPVXTE7 12258 | -2/Testing | Core integrity fell below 50% 12259 | -2/Testing | Entered Access 12259 | -1/Access | Evolved 2 slots: Propulsion x2 12288 | -1/Access | Lost 5 parts (2n1u2w) 12352 | -1/Access | Released all parts (5) 12382 | -1/Access | Core integrity fell below 50% 12422 | -1/Access | Core integrity fell below 20% 12425 | -1/Access | Destroyed by P-80 Master with Gamma Rifle Last Messages --------------- Released Backup Power VII. Released Hdn. Centrium Wheel. R-10 Processor collects Backup Power VII. R-10 Processor collects Backup Laser VII. P-80 Master resets U-05 Engineer, system corruption cleaned. R-10 Processor collects Backup Laser VII. Connecting with Fabricator... Door malfunctions. P-80 Master resets P-80 Master, system corruption cleaned. P-80 Master resets R-10 Processor, system corruption cleaned. K-01 Serf destroyed. P-80 Master resets R-10 Processor, system corruption cleaned. Door malfunctions. Connecting with Terminal... Terminal disabled. Slammed into P-80 Master. Destroyed Unknown Storage. P-80 Master system corrupted by crushing effect. Destabilizing: Core damaged (-48). Slammed into P-80 Master. Map ----- +----------------------------------------------------+ | ##########+####?????# #???????????????? | | #?????# #???????????????? | | #?????# #???????????????? | | #?????# #???????????????? | | #?????# #???????????????? | | #?????# #???????????????? | | #?????# #???????????????? | | !%= ####### #???????????????? | | ####### #????"??????????? | | #?????# #??"""??????????? | | #?????# # """??????????? | | #?????# + """??????????? | | #?????# # """??????????? | | #?????# #???????????????? | | ^ #?????# #???????????????? | | ??????############### #???????????????? | | ????????????????????# #???????????????? | | ????????????????????# #???????????????? | | ??? ?????????????????????# #???????????????? | | ????????????############## #???????????????? | | ????????????# # A #???????????????? | | ????????????# # #???????????????? | | ????????????# #p #???????????????? | | ????????????# " #p #???????????????? | | ????????????# """ s#p #???????????????? | | ????????????# """ p @p #???????????????? | | ????????????# " pp#p #???????????????? | | ????????????# # u w#???????????????? | | ????????????# # #???????????????? | | ????????????# # #???????????????? | | ????????????# """ "" # #???????????????? | | ????????????# """T""" # #???????????????? | | ????????????############## #???????????????? | | ?????????????????????????# #???????????????? | | ?????????????????????????# #???????????????? | | ?????????????????????????# #???????????????? | | ?????????????????????????# #???????????????? | | ?????????????????????????# #???????????????? | | ?????????????????????????? ? ????????????????? | | ?????????????????????????? ????????????????????? | | ?????????????????????????????????????????????????? | | ?????????????????????????????????????????????????? | | ?????????????????????????????????????????????????? | | ?????????????????????????????????????????????????? | | ?????????????????????????????????????????????????? | | ?????????????????????????????????????????????????? | | ?????????????????????????????????????????????????? | | ?????????????????????????????????????????????????? | | ?????????????????????????????????????????????????? | | ?????????????????????????????????????????????????? | +----------------------------------------------------+ Best States ------------- Heat Dissipation 74 Energy Generation 38 Energy Capacity 510 Matter Stores 300 Matter Capacity 300 Sight Range 16 Terrain Scan Density 10 Jamming Range 16 Armor Coverage 600 Resistance: EM 75 Propulsion Shielding 66 Utility Shielding 66 Weapon Shielding 66 Reclamation Efficiency 15 Evasion (%) 55 Melee Accuracy 8 Target Analysis 6 Core Analysis 8 Recoil Reduction 4 Matter Filtering 30 Offensive Hacking 24 Defensive Hacking 24 Relay Coupler Types 2 Relay Coupler Value 50 Item Schematics ----------------- None Robot Schematics ------------------ None Fabricated ------------ Nothing Alien Tech Used ----------------- None Achievements -------------- None Challenges ------------ None Game ------ Seed BombardmentUtilityFlail Manual? 0 Play Time 02:58:32 Cumulative 292.7 hours Start 2021.10.23 @ 18:13:49 End 2021.10.23 @ 21:21:52 Sessions 1 Manual Loads 0 Difficulty Rogue Special Mode None Game No. 287 Rogue 287 Adventurer 0 Explorer 0 Win Type - Total 15 Types 9/0/4/2/0/0/0/0/0 Lore% 81 Gallery% 87 Achievement% 76 Wizard Run 0 Options --------- ASCII 0 Keyboard 1 Movement Numpad Keybinds 0 Fullscreen 1 Font 18/SmallcapsGlow Map View 76x50 Tactical HUD 1 Map Filters NONE Filters NONE Steam 1 RUN: 4e7da6d6-ef2a-47c3-b13a-1a128bdde28d